fUSD/lending_fUSD_20241223
["ID","MTS","AMOUNT","RATE_DAILY","PERIOD"]
[346456129,1734983456475,-536.47,0.00014246,2]
[346456130,1734983456483,-500.0,0.00014246,2]
[346456131,1734983456492,-500.0,0.00014246,2]
[346456132,1734983456501,-500.0,0.00014246,2]
[346456133,1734983456512,-500.0,0.00014246,2]
[346456134,1734983456521,-500.0,0.00014246,2]
[346456135,1734983456530,-500.0,0.00014246,2]
[346456136,1734983456540,-704.56,0.00014246,2]
[346456137,1734983456549,-1063.61,0.00014246,2]
[346456138,1734983456558,-500.0,0.00014246,2]
[346456139,1734983456568,-729.4,0.00014246,2]
[346456140,1734983456577,-500.0,0.00014246,2]
[346456141,1734983456586,-500.0,0.00014246,2]
[346456142,1734983456595,-500.0,0.00014246,2]
[346456143,1734983456604,-1288.05,0.00014246,2]
[346456144,1734983456613,-500.0,0.00014246,2]
[346456145,1734983456622,-500.0,0.00014246,2]
[346456146,1734983456631,-500.0,0.00014246,2]
[346456147,1734983456641,-876.88,0.00014246,2]
[346456148,1734983456650,-500.0,0.00014246,2]
[346456149,1734983456659,-500.0,0.00014246,2]
[346456150,1734983456669,-500.0,0.00014246,2]
[346456151,1734983456678,-506.30038498,0.00014246,2]
[346456152,1734983456687,-500.0,0.00014246,2]
[346456153,1734983456696,-500.0,0.00014246,2]
[346456154,1734983456705,-500.0,0.00014246,2]
[346456155,1734983456714,-627.92,0.00014246,2]
[346456156,1734983456723,-837.11,0.00014246,2]
[346456157,1734983456732,-500.0,0.00014246,2]
[346456158,1734983456741,-500.0,0.00014246,2]
[346456159,1734983456750,-500.0,0.00014246,2]
[346456160,1734983456760,-715.29,0.00014246,2]
[346456161,1734983456769,-500.0,0.00014246,2]
[346456162,1734983456778,-500.0,0.00014246,2]
[346456163,1734983456788,-500.0,0.00014246,2]
[346456164,1734983456797,-503.14,0.00014246,2]
[346456165,1734983456806,-500.0,0.00014246,2]
[346456166,1734983456814,-693.1,0.00014246,2]
[346456167,1734983456824,-1639.04,0.00014246,2]
[346456168,1734983456833,-500.0,0.00014246,2]
[346456169,1734983456843,-585.09340595,0.00014246,2]
[346456170,1734983456852,-500.0,0.00014246,2]
[346456171,1734983456861,-909.84,0.00014246,2]
[346456172,1734983456870,-1025.51,0.00014246,2]
[346456173,1734983456879,-155.940262,0.00014246,2]
[346456174,1734983456888,-500.0,0.00014246,2]
[346456175,1734983456897,-2789.796411,0.00014246,2]
[346456176,1734983456906,-500.0,0.00014246,2]
[346456177,1734983456915,-3350.644444,0.00014246,2]
[346456178,1734983456924,-1267.55,0.00014246,2]
[346456179,1734983456933,-573.82642136,0.00014246,2]
[346456180,1734983456942,-500.0,0.00014246,2]
[346456181,1734983456951,-500.0,0.00014246,2]
[346456182,1734983456960,-500.0,0.00014246,2]
[346456183,1734983456969,-500.0,0.00014246,2]
[346456184,1734983456978,-500.0,0.00014246,2]
[346456185,1734983456987,-955.34,0.00014246,2]
[346456186,1734983456997,-500.0,0.00014246,2]
[346456187,1734983457006,-500.0,0.00014246,2]
[346456188,1734983457015,-1230.42,0.00014246,2]
[346456189,1734983457025,-500.0,0.00014246,2]
[346456190,1734983457034,-1124.42,0.00014246,2]
[346456191,1734983457044,-500.0,0.00014246,2]
[346456192,1734983457053,-500.0,0.00014246,2]
[346456193,1734983457062,-500.0,0.00014246,2]
[346456194,1734983457072,-500.0,0.00014246,2]
[346456195,1734983457081,-649.71,0.00014246,2]
[346456196,1734983457090,-500.0,0.00014246,2]
[346456197,1734983457099,-500.0,0.00014246,2]
[346456198,1734983457108,-500.0,0.00014246,2]
[346456199,1734983457117,-713.56,0.00014246,2]
[346456200,1734983457126,-499.1988,0.00014246,2]
[346456201,1734983457135,-438.82462211,0.00014246,2]
[346456202,1734983457144,-500.0,0.00014246,2]
[346456203,1734983457153,-500.0,0.00014246,2]
[346456204,1734983457161,-500.0,0.00014246,2]
[346456205,1734983457170,-500.0,0.00014246,2]
[346456206,1734983457180,-500.0,0.00014246,2]
[346456207,1734983457189,-500.0,0.00014246,2]
[346456208,1734983457198,-500.0,0.00014246,2]
[346456209,1734983457207,-500.0,0.00014246,2]
[346456210,1734983457220,-1323.13,0.00014246,2]
[346456211,1734983457229,-500.0,0.00014246,2]
[346456212,1734983457237,-958.59,0.00014246,2]
[346456213,1734983457247,-938.95,0.00014246,2]
[346456214,1734983457255,-1909.64,0.00014246,2]
[346456215,1734983457265,-500.0,0.00014246,2]
[346456216,1734983457275,-1467.51,0.00014246,2]
[346456217,1734983457284,-958.62,0.00014246,2]
[346456218,1734983457295,-768.8,0.00014246,2]
[346456219,1734983457304,-500.0,0.00014246,2]
[346456220,1734983457313,-563.5,0.00014246,2]
[346456221,1734983457322,-1353.65,0.00014246,2]
[346456222,1734983457331,-743.02,0.00014246,2]
[346456223,1734983457340,-500.0,0.00014246,2]
[346456224,1734983457349,-2120.2,0.00014246,2]
[346456225,1734983457357,-999.63,0.00014246,2]
[346456226,1734983457366,-498.90339646,0.00014246,2]
[346456227,1734983457375,-500.0,0.00014246,2]
[346456228,1734983457384,-500.0,0.00014246,2]
[346456229,1734983457393,-500.0,0.00014246,2]
[346456230,1734983457401,-730.43,0.00014246,2]
[346456231,1734983457410,-500.0,0.00014246,2]
[346456232,1734983457418,-712.07,0.00014246,2]
[346456233,1734983457428,-1571.45,0.00014246,2]
[346456234,1734983457437,-500.0,0.00014246,2]
[346456235,1734983457446,-500.0,0.00014246,2]
[346456236,1734983457455,-500.0,0.00014246,2]
[346456237,1734983457463,-1386.96,0.00014246,2]
[346456238,1734983457472,-2428.76,0.00014246,2]
[346456239,1734983457481,-500.0,0.00014246,2]
[346456240,1734983457490,-1431.08,0.00014246,2]
[346456241,1734983457499,-500.0,0.00014246,2]
[346456242,1734983457508,-500.0,0.00014246,2]
[346456243,1734983457516,-500.0,0.00014246,2]
[346456244,1734983457526,-500.0,0.00014246,2]
[346456245,1734983457535,-500.0,0.00014246,2]
[346456246,1734983457544,-500.0,0.00014246,2]
[346456247,1734983457553,-2535.1,0.00014246,2]
[346456248,1734983457562,-590.71,0.00014246,2]
[346456249,1734983457571,-500.0,0.00014246,2]
[346456250,1734983457580,-500.0,0.00014246,2]
[346456251,1734983457590,-500.0,0.00014246,2]
[346456252,1734983457598,-500.0,0.00014246,2]
[346456253,1734983457607,-500.0,0.00014246,2]
[346456254,1734983457616,-500.0,0.00014246,2]
[346456255,1734983457624,-500.0,0.00014246,2]
[346456256,1734983457633,-500.0,0.00014246,2]
[346456257,1734983457642,-500.0,0.00014246,2]
[346456258,1734983457651,-647.68,0.00014246,2]
[346456259,1734983457660,-2179.1,0.00014246,2]
[346456260,1734983457669,-500.0,0.00014246,2]
[346456261,1734983457678,-503.39076064,0.00014246,2]
[346456262,1734983457687,-503.57,0.00014246,2]
[346456263,1734983457696,-1741.94,0.00014246,2]
[346456264,1734983457705,-533.93,0.00014246,2]
[346456265,1734983457714,-500.0,0.00014246,2]
[346456266,1734983457723,-506.11,0.00014246,2]
[346456267,1734983457731,-2546.21,0.00014246,2]
[346456268,1734983457740,-500.0,0.00014246,2]
[346456269,1734983457754,-500.0,0.00014246,2]
[346456270,1734983457765,-500.0,0.00014246,2]
[346456271,1734983457774,-500.0,0.00014246,2]
[346456272,1734983457783,-2384.93,0.00014246,2]
[346456273,1734983457792,-500.0,0.00014246,2]
[346456274,1734983457801,-500.0,0.00014246,2]
[346456275,1734983457812,-1472.51,0.00014246,2]
[346456276,1734983457821,-193.98700376,0.00014246,2]
[346456277,1734983457830,-324.56584885,0.00014246,2]
[346456278,1734983457840,-464.77287953,0.00014246,2]
[346456279,1734983457849,-739.46,0.00014246,2]
[346456280,1734983457858,-2040.74,0.00014246,2]
[346456281,1734983457867,-500.0,0.00014246,2]
[346456282,1734983457876,-500.0,0.00014246,2]
[346456283,1734983457885,-2108.54,0.00014246,2]
[346456284,1734983457894,-500.0,0.00014246,2]
[346456285,1734983457903,-500.0,0.00014246,2]
[346456286,1734983457912,-500.0,0.00014246,2]
[346456287,1734983457921,-1103.36,0.00014246,2]
[346456288,1734983457930,-500.0,0.00014246,2]
[346456289,1734983457940,-500.0,0.00014246,2]
[346456290,1734983457949,-603.59,0.00014246,2]
[346456291,1734983457958,-500.0,0.00014246,2]
[346456292,1734983457967,-1314.39,0.00014246,2]
[346456293,1734983457976,-681.79,0.00014246,2]
[346456294,1734983457985,-500.0,0.00014246,2]
[346456295,1734983457994,-1474.25,0.00014246,2]
[346456296,1734983458003,-569.96,0.00014246,2]
[346456297,1734983458013,-500.0,0.00014246,2]
[346456298,1734983458022,-500.0,0.00014246,2]
[346456299,1734983458031,-2526.97,0.00014246,2]
[346456300,1734983458041,-500.0,0.00014246,2]
[346456301,1734983458051,-588.45,0.00014246,2]
[346456302,1734983458060,-562.03,0.00014246,2]
[346456303,1734983458070,-500.0,0.00014246,2]
[346456304,1734983458079,-500.0,0.00014246,2]
[346456305,1734983458088,-500.0,0.00014246,2]
[346456306,1734983458097,-2097.31,0.00014246,2]
[346456307,1734983458106,-500.0,0.00014246,2]
[346456308,1734983458115,-500.0,0.00014246,2]
[346456309,1734983458125,-500.0,0.00014246,2]
[346456310,1734983458134,-2272.82,0.00014246,2]
[346456311,1734983458143,-1399.67,0.00014246,2]
[346456312,1734983458152,-1081.13,0.00014246,2]
[346456313,1734983458161,-500.0,0.00014246,2]
[346456314,1734983458170,-952.35,0.00014246,2]
[346456315,1734983458179,-500.0,0.00014246,2]
[346456316,1734983458188,-500.0,0.00014246,2]
[346456317,1734983458198,-766.53,0.00014246,2]
[346456318,1734983458207,-500.0,0.00014246,2]
[346456319,1734983458220,-500.0,0.00014246,2]
[346456320,1734983458229,-971.56,0.00014246,2]
[346456321,1734983458237,-1033.9,0.00014246,2]
[346456322,1734983458247,-908.96,0.00014246,2]
[346456323,1734983458258,-1920.11,0.00014246,2]
[346456324,1734983458270,-500.0,0.00014246,2]
[346456325,1734983458279,-500.0,0.00014246,2]
[346456326,1734983458289,-500.0,0.00014246,2]
[346456327,1734983458299,-500.0,0.00014246,2]
[346456328,1734983458308,-500.0,0.00014246,2]
[346456329,1734983458317,-500.0,0.00014246,2]
[346456330,1734983458326,-500.0,0.00014246,2]
[346456331,1734983458335,-1220.95,0.00014246,2]
[346456332,1734983458343,-506.65987761,0.00014246,2]
[346456333,1734983458353,-500.0,0.00014246,2]
[346456334,1734983458362,-500.0,0.00014246,2]
[346456335,1734983458371,-503.89537021,0.00014246,2]
[346456336,1734983458380,-500.0,0.00014246,2]
[346456337,1734983458389,-549.68,0.00014246,2]
[346456338,1734983458398,-2597.65,0.00014246,2]
[346456339,1734983458407,-500.0,0.00014246,2]
[346456340,1734983458415,-500.0,0.00014246,2]
[346456341,1734983458424,-500.0,0.00014246,2]
[346456342,1734983458433,-1679.77,0.00014246,2]
[346456343,1734983458442,-500.0,0.00014246,2]
[346456344,1734983458451,-500.0,0.00014246,2]
[346456345,1734983458459,-500.0,0.00014246,2]
[346456346,1734983458468,-500.0,0.00014246,2]
[346456347,1734983458477,-500.0,0.00014246,2]
[346456348,1734983458486,-2479.89,0.00014246,2]
[346456349,1734983458494,-500.0,0.00014246,2]
[346456350,1734983458503,-500.0,0.00014246,2]
[346456351,1734983458515,-500.0,0.00014246,2]
[346456352,1734983458524,-500.0,0.00014246,2]
[346456353,1734983458533,-500.0,0.00014246,2]
[346456354,1734983458542,-884.3,0.00014246,2]
[346456355,1734983458552,-533.99,0.00014246,2]
[346456356,1734983458561,-210.58071379,0.00014246,2]
[346456357,1734983458569,-1337.77,0.00014246,2]
[346456358,1734983458578,-1234.01,0.00014246,2]
[346456359,1734983458587,-500.0,0.00014246,2]
[346456360,1734983458596,-500.0,0.00014246,2]
[346456361,1734983458605,-1693.27,0.00014246,2]
[346456362,1734983458614,-500.0,0.00014246,2]
[346456363,1734983458623,-500.0,0.00014246,2]
[346456364,1734983458631,-1639.66,0.00014246,2]
[346456365,1734983458640,-500.0,0.00014246,2]
[346456366,1734983458649,-1258.33,0.00014246,2]
[346456367,1734983458657,-500.0,0.00014246,2]
[346456368,1734983458666,-500.0,0.00014246,2]
[346456369,1734983458674,-500.0,0.00014246,2]
[346456370,1734983458683,-865.68,0.00014246,2]
[346456371,1734983458692,-500.0,0.00014246,2]
[346456372,1734983458700,-500.0,0.00014246,2]
[346456373,1734983458710,-1242.29,0.00014246,2]
[346456374,1734983458718,-500.0,0.00014246,2]
[346456375,1734983458727,-558.44,0.00014246,2]
[346456376,1734983458736,-500.0,0.00014246,2]
[346456377,1734983458745,-500.0,0.00014246,2]
[346456378,1734983458755,-1883.5,0.00014246,2]
[346456379,1734983458765,-500.0,0.00014246,2]
[346456380,1734983458775,-500.0,0.00014246,2]
[346456381,1734983458785,-513.08797627,0.00014246,2]
[346456382,1734983458794,-500.0,0.00014246,2]
[346456383,1734983458803,-500.0,0.00014246,2]
[346456384,1734983458812,-1457.31,0.00014246,2]
[346456385,1734983458821,-500.0,0.00014246,2]
[346456386,1734983458831,-500.0,0.00014246,2]
[346456387,1734983458840,-500.0,0.00014246,2]
[346456388,1734983458849,-744.66,0.00014246,2]
[346456389,1734983458858,-500.0,0.00014246,2]
[346456390,1734983458867,-500.0,0.00014246,2]
[346456391,1734983458877,-614.05,0.00014246,2]
[346456392,1734983458886,-500.0,0.00014246,2]
[346456393,1734983458895,-505.95,0.00014246,2]
[346456394,1734983458903,-1106.29,0.00014246,2]
[346456395,1734983458913,-825.99,0.00014246,2]
[346456396,1734983458922,-614.73,0.00014246,2]
[346456397,1734983458931,-598.56,0.00014246,2]
[346456398,1734983458941,-2428.41,0.00014246,2]
[346456399,1734983458950,-500.0,0.00014246,2]
[346456400,1734983458959,-647.89,0.00014246,2]
[346456401,1734983458968,-555.89,0.00014246,2]
[346456402,1734983458977,-505.46544462,0.00014246,2]
[346456403,1734983458986,-500.0,0.00014246,2]
[346456404,1734983458995,-1850.68,0.00014246,2]
[346456405,1734983459005,-733.51,0.00014246,2]
[346456406,1734983459015,-1395.61,0.00014246,2]
[346456407,1734983459024,-500.0,0.00014246,2]
[346456408,1734983459033,-500.0,0.00014246,2]
[346456409,1734983459043,-500.0,0.00014246,2]
[346456410,1734983459052,-500.0,0.00014246,2]
[346456411,1734983459061,-1898.84,0.00014246,2]
[346456412,1734983459070,-1190.22,0.00014246,2]
[346456413,1734983459079,-221.28887372,0.00014246,2]
[346456414,1734983459088,-520.67,0.00014246,2]
[346456415,1734983459097,-603.48094754,0.00014246,2]
[346456416,1734983459106,-659.78,0.00014246,2]
[346456417,1734983459115,-500.0,0.00014246,2]
[346456418,1734983459125,-706.12,0.00014246,2]
[346456419,1734983459134,-500.0,0.00014246,2]
[346456420,1734983459143,-1161.74,0.00014246,2]
[346456421,1734983459152,-1198.3,0.00014246,2]
[346456422,1734983459161,-792.15,0.00014246,2]
[346456423,1734983459170,-500.0,0.00014246,2]
[346456424,1734983459179,-1131.14,0.00014246,2]
[346456425,1734983459188,-500.0,0.00014246,2]
[346456426,1734983459197,-500.0,0.00014246,2]
[346456427,1734983459206,-1629.86,0.00014246,2]
[346456428,1734983459219,-500.0,0.00014246,2]
[346456429,1734983459229,-500.0,0.00014246,2]
[346456430,1734983459238,-977.33,0.00014246,2]
[346456431,1734983459247,-548.69,0.00014246,2]
[346456432,1734983459258,-500.0,0.00014246,2]
[346456433,1734983459268,-500.0,0.00014246,2]
[346456434,1734983459277,-500.0,0.00014246,2]
[346456435,1734983459289,-500.0,0.00014246,2]
[346456436,1734983459298,-628.27,0.00014246,2]
[346456437,1734983459307,-599.12,0.00014246,2]
[346456438,1734983459316,-500.0,0.00014246,2]
[346456439,1734983459325,-500.0,0.00014246,2]
[346456440,1734983459335,-1391.9,0.00014246,2]
[346456441,1734983459344,-501.61706296,0.00014246,2]
[346456442,1734983459353,-500.0,0.00014246,2]
[346456443,1734983459362,-2005.44,0.00014246,2]
[346456444,1734983459371,-700.0,0.00014246,2]
[346456445,1734983459381,-500.0,0.00014246,2]
[346456446,1734983459391,-500.0,0.00014246,2]
[346456447,1734983459400,-500.0,0.00014246,2]
[346456448,1734983459410,-1352.65,0.00014246,2]
[346456449,1734983459420,-500.0,0.00014246,2]
[346456450,1734983459429,-2203.91,0.00014246,2]
[346456451,1734983459439,-929.9,0.00014246,2]
[346456452,1734983459449,-500.0,0.00014246,2]
[346456453,1734983459459,-1256.82,0.00014246,2]
[346456454,1734983459473,-582.13,0.00014246,2]
[346456455,1734983459482,-500.0,0.00014246,2]
[346456456,1734983459492,-500.0,0.00014246,2]
[346456457,1734983459501,-500.0,0.00014246,2]
[346456458,1734983459514,-500.0,0.00014246,2]
[346456459,1734983459523,-1626.83,0.00014246,2]
[346456460,1734983459533,-821.99,0.00014246,2]
[346456461,1734983459543,-500.0,0.00014246,2]
[346456462,1734983459552,-500.0,0.00014246,2]
[346456463,1734983459561,-500.0,0.00014246,2]
[346456464,1734983459570,-1342.26,0.00014246,2]
[346456465,1734983459579,-6402.42,0.00014246,2]
[346456466,1734983459589,-500.0,0.00014246,2]
[346456467,1734983459599,-926.8,0.00014246,2]
[346456468,1734983459608,-1227.45,0.00014246,2]
[346456469,1734983459617,-500.0,0.00014246,2]
[346456470,1734983459626,-1859.49,0.00014246,2]
[346456471,1734983459635,-500.0,0.00014246,2]
[346456472,1734983459644,-500.0,0.00014246,2]
[346456473,1734983459653,-614.72,0.00014246,2]
[346456474,1734983459662,-500.0,0.00014246,2]
[346456475,1734983459671,-1326.67,0.00014246,2]
[346456476,1734983459680,-500.0,0.00014246,2]
[346456477,1734983459690,-500.0,0.00014246,2]
[346456478,1734983459699,-500.0,0.00014246,2]
[346456479,1734983459707,-500.0,0.00014246,2]
[346456480,1734983459716,-596.52,0.00014246,2]
[346456481,1734983459725,-1015.69,0.00014246,2]
[346456482,1734983459736,-500.0,0.00014246,2]
[346456483,1734983459746,-500.0,0.00014246,2]
[346456484,1734983459755,-1210.05,0.00014246,2]
[346456485,1734983459768,-1848.4,0.00014246,2]
[346456486,1734983459778,-574.22,0.00014246,2]
[346456487,1734983459788,-1285.29,0.00014246,2]
[346456488,1734983459797,-500.0,0.00014246,2]
[346456489,1734983459806,-500.0,0.00014246,2]
[346456490,1734983459815,-500.0,0.00014246,2]
[346456491,1734983459824,-500.0,0.00014246,2]
[346456492,1734983459833,-2751.45,0.00014246,2]
[346456493,1734983459842,-500.0,0.00014246,2]
[346456494,1734983459851,-1128.87,0.00014246,2]
[346456495,1734983459860,-500.0,0.00014246,2]
[346456496,1734983459870,-683.58,0.00014246,2]
[346456497,1734983459879,-6056.43,0.00014246,2]
[346456498,1734983459889,-1154.43,0.00014246,2]
[346456499,1734983459898,-500.0,0.00014246,2]
[346456500,1734983459908,-500.0,0.00014246,2]
[346456501,1734983459918,-500.0,0.00014246,2]
[346456502,1734983459927,-11553.88,0.00014246,2]
[346456503,1734983459936,-3461.58,0.00014246,2]
[346456504,1734983459946,-2563.93,0.00014246,2]
[346456505,1734983459956,-1292.7,0.00014246,2]
[346456506,1734983459966,-500.0,0.00014246,2]
[346456507,1734983459976,-500.0,0.00014246,2]
[346456508,1734983459986,-500.0,0.00014246,2]
[346456509,1734983459996,-2781.72,0.00014246,2]
[346456510,1734983460006,-1045.69,0.00014246,2]
[346456511,1734983460019,-500.0,0.00014246,2]
[346456512,1734983460029,-554.57,0.00014246,2]
[346456513,1734983460038,-1274.89,0.00014246,2]
[346456514,1734983460049,-500.0,0.00014246,2]
[346456515,1734983460059,-1146.69,0.00014246,2]
[346456516,1734983460069,-500.0,0.00014246,2]
[346456517,1734983460080,-948.38,0.00014246,2]
[346456518,1734983460090,-500.0,0.00014246,2]
[346456519,1734983460099,-500.0,0.00014246,2]
[346456520,1734983460109,-1729.1,0.00014246,2]
[346456521,1734983460118,-500.0,0.00014246,2]
[346456522,1734983460128,-1060.71,0.00014246,2]
[346456523,1734983460137,-15575.1,0.00014246,2]
[346456524,1734983460147,-500.0,0.00014246,2]
[346456525,1734983460156,-500.0,0.00014246,2]
[346456526,1734983460165,-1437.23,0.00014246,2]
[346456527,1734983460174,-3891.1,0.00014246,2]
[346456528,1734983460184,-920.78,0.00014246,2]
[346456529,1734983460194,-2142.93,0.00014246,2]
[346456530,1734983460204,-736.03,0.00014246,2]
[346456531,1734983460219,-618.60031528,0.00014246,2]
[346456532,1734983460229,-500.0,0.00014246,2]
[346456533,1734983460238,-1226.17,0.00014246,2]
[346456534,1734983460248,-504.64572839,0.00014246,2]
[346456535,1734983460260,-500.0,0.00014246,2]
[346456536,1734983460269,-500.0,0.00014246,2]
[346456537,1734983460279,-1074.33,0.00014246,2]
[346456538,1734983460289,-500.0,0.00014246,2]
[346456539,1734983460298,-500.0,0.00014246,2]
[346456540,1734983460308,-6302.87,0.00014246,2]
[346456541,1734983460318,-3579.93,0.00014246,2]
[346456542,1734983460328,-678.95,0.00014246,2]
[346456543,1734983460338,-1468.11,0.00014246,2]
[346456544,1734983460348,-500.0,0.00014246,2]
[346456545,1734983460358,-695.77,0.00014246,2]
[346456546,1734983460368,-7214.02,0.00014246,2]
[346456547,1734983460378,-509.18202464,0.00014246,2]
[346456548,1734983460387,-617.33694343,0.00014246,2]
[346456549,1734983460397,-6586.38,0.00014246,2]
[346456550,1734983460407,-500.0,0.00014246,2]
[346456551,1734983460416,-500.0,0.00014246,2]
[346456552,1734983460426,-500.0,0.00014246,2]
[346456553,1734983460435,-500.0,0.00014246,2]
[346456554,1734983460445,-1410.03,0.00014246,2]
[346456555,1734983460455,-500.0,0.00014246,2]
[346456556,1734983460465,-2688.66,0.00014246,2]
[346456557,1734983460475,-1472.35,0.00014246,2]
[346456558,1734983460484,-500.0,0.00014246,2]
[346456559,1734983460494,-500.0,0.00014246,2]
[346456560,1734983460504,-1255.72,0.00014246,2]
[346456561,1734983460516,-1233.64,0.00014246,2]
[346456562,1734983460530,-500.0,0.00014246,2]
[346456563,1734983460540,-701.82,0.00014246,2]
[346456564,1734983460550,-5090.58,0.00014246,2]
[346456565,1734983460560,-500.0,0.00014246,2]
[346456566,1734983460570,-500.0,0.00014246,2]
[346456567,1734983460580,-3635.2,0.00014246,2]
[346456568,1734983460590,-500.0,0.00014246,2]
[346456569,1734983460601,-869.32,0.00014246,2]
[346456570,1734983460611,-503.58819522,0.00014246,2]
[346456571,1734983460622,-1046.58,0.00014246,2]
[346456572,1734983460632,-627.84,0.00014246,2]
[346456573,1734983460642,-4671.0,0.00014246,2]
[346456574,1734983460651,-4686.61,0.00014246,2]
[346456575,1734983460661,-500.0,0.00014246,2]
[346456576,1734983460671,-500.0,0.00014246,2]
[346456577,1734983460680,-630.7,0.00014246,2]
[346456578,1734983460690,-820.95,0.00014246,2]
[346456579,1734983460699,-1130.83,0.00014246,2]
[346456580,1734983460709,-1836.15,0.00014246,2]
[346456581,1734983460720,-2995.53,0.00014246,2]
[346456582,1734983460729,-2323.91,0.00014246,2]
[346456583,1734983460739,-516.26,0.00014246,2]
[346456584,1734983460749,-500.0,0.00014246,2]
[346456585,1734983460760,-1155.82,0.00014246,2]
[346456586,1734983460770,-500.0,0.00014246,2]
[346456587,1734983460780,-1123.17,0.00014246,2]
[346456588,1734983460790,-2403.14,0.00014246,2]
[346456589,1734983460799,-810.25,0.00014246,2]
[346456590,1734983460809,-902.0,0.00014246,2]
[346456591,1734983460818,-1314.92,0.00014246,2]
[346456592,1734983460828,-500.0,0.00014246,2]
[346456593,1734983460838,-500.0,0.00014246,2]
[346456594,1734983460847,-5525.58,0.00014246,2]
[346456595,1734983460857,-512.09,0.00014246,2]
[346456596,1734983460867,-295.03047548,0.00014246,2]
[346456597,1734983460877,-500.0,0.00014246,2]
[346456598,1734983460887,-500.0,0.00014246,2]
[346456599,1734983460897,-666.71,0.00014246,2]
[346456600,1734983460907,-2455.92,0.00014246,2]
[346456601,1734983460917,-872.99,0.00014246,2]
[346456602,1734983460927,-4918.98,0.00014246,2]
[346456603,1734983460937,-500.0,0.00014246,2]
[346456604,1734983460947,-500.0,0.00014246,2]
[346456605,1734983460956,-500.0,0.00014246,2]
[346456606,1734983460966,-500.0,0.00014246,2]
[346456607,1734983460976,-500.0,0.00014246,2]
[346456608,1734983460985,-4475.48,0.00014246,2]
[346456609,1734983460995,-579.5,0.00014246,2]
[346456610,1734983461004,-676.19,0.00014246,2]
[346456611,1734983461017,-500.0,0.00014246,2]
[346456612,1734983461027,-500.0,0.00014246,2]
[346456613,1734983461036,-553.21,0.00014246,2]
[346456614,1734983461046,-8415.59,0.00014246,2]
[346456615,1734983461056,-792.97,0.00014246,2]
[346456616,1734983461066,-500.0,0.00014246,2]
[346456617,1734983461076,-3919.46,0.00014246,2]
[346456618,1734983461086,-3391.19,0.00014246,2]
[346456619,1734983461095,-636.38,0.00014246,2]
[346456620,1734983461105,-834.47,0.00014246,2]
[346456621,1734983461115,-2742.37,0.00014246,2]
[346456622,1734983461124,-1027.57,0.00014246,2]
[346456623,1734983461134,-847.46,0.00014246,2]
[346456624,1734983461143,-9012.3,0.00014246,2]
[346456625,1734983461153,-500.0,0.00014246,2]
[346456626,1734983461162,-555.96,0.00014246,2]
[346456627,1734983461172,-500.0,0.00014246,2]
[346456628,1734983461183,-500.0,0.00014246,2]